bitfinex-derivatives/quotes_SOLF0:USTF0_20250127
["timestamp","ask_amount","ask_price","bid_price","bid_amount"]
[1737992804882,4.2860462,234.96,234.86,1.5014]
[1737992805081,0.0301462,234.96,234.86,1.5014]
[1737992805578,0.0301462,234.96,234.85,21.32464631]
[1737992805979,0.0301462,234.96,234.85,25.58234631]
[1737992806277,0.0301462,234.96,234.82,1.5442]
[1737992806481,0.0301462,234.96,234.85,21.32464631]
[1737992806780,0.0301462,234.96,234.9,21.32464631]
[1737992806981,0.0301462,234.96,234.91,1.8471]
[1737992807181,4.2545,235.03,234.91,1.8471]
[1737992807379,1.4788,235.13,234.92,1.4212]
[1737992807981,8.5059,235.12,234.85,21.32464631]
[1737992808282,21.32464631,235.07,234.83,3.2683]
[1737992808478,0.02795482,235.01,234.96,0.03162696]
[1737992808779,4.2557,234.97,234.96,0.03162696]
[1737992809677,0.02795482,235.01,234.75,21.32464631]
[1737992809881,1.7524,234.96,234.81,4.2583]
[1737992810084,1.7524,234.96,234.75,21.32464631]
[1737992810275,1.7524,234.96,234.76,0.75748811]
[1737992810474,1.7524,234.96,234.82,4.2582]
[1737992810675,1.7524,234.96,234.75,21.32464631]
[1737992810878,0.02749448,234.91,234.8,21.32464631]
[1737992811082,0.02749448,234.91,234.81,1.5517]
[1737992811274,4.2571,234.89,234.81,1.5517]
[1737992811474,0.02749448,234.91,234.81,1.5517]
[1737992812587,0.02749448,234.91,234.87,4.2574]
[1737992813087,0.02749448,234.91,234.81,1.5517]
[1737992813288,0.02749448,234.91,234.9,4.2569]
[1737992813582,9.448e-05,234.91,234.9,4.2569]
[1737992814085,9.448e-05,234.91,234.82,5.0218]
[1737992814482,9.448e-05,234.91,234.9,4.2569]
[1737992815082,9.448e-05,234.91,234.88,0.02922634]
[1737992815683,4.2569,234.9,234.88,0.02922634]
[1737992815889,9.448e-05,234.91,234.88,0.02922634]
[1737992816383,4.2569,234.9,234.88,0.02922634]
[1737992816983,4.2573,234.88,234.83,4.2581]
[1737992817289,9.448e-05,234.91,234.82,1.5418]
[1737992817581,4.2578,234.85,234.8,4.2587]
[1737992817787,21.32464631,234.99,234.74,1.4787]
[1737992818287,0.02702741,234.89,234.74,1.4787]
[1737992818587,21.32464631,234.99,234.74,1.4787]
[1737992818781,4.2582,234.83,234.74,1.4787]
[1737992818980,21.32464631,234.99,234.74,1.4787]
[1737992819187,0.03139245,234.81,234.8,4.2587]
[1737992819488,0.02827088,234.83,234.74,1.4787]
[1737992819990,0.02827088,234.83,234.81,4.2585]
[1737992820485,0.02827088,234.83,234.82,4.2583]
[1737992820689,0.02827088,234.83,234.76,13.15715474]
[1737992820886,0.02827088,234.83,234.74,1.4787]
[1737992821191,0.02827088,234.83,234.6,13.15715474]
[1737992821391,13.15715474,234.79,234.61,0.75785535]
[1737992821588,1.4035,234.78,234.61,0.75785535]
[1737992821892,0.02986788,234.74,234.58,1.8136]
[1737992822093,4.2609,234.68,234.61,4.262]
[1737992822283,4.28961057,234.68,234.61,4.262]
[1737992822596,0.02871057,234.68,234.65,4.2613]
[1737992822889,3.2363,234.83,234.61,21.4167197]
[1737992823095,3.2363,234.83,234.67,21.4167197]
[1737992823489,3.2363,234.83,234.68,1.4299]
[1737992823984,4.2587,234.8,234.73,4.2599]
[1737992824292,0.03138485,234.78,234.73,0.03140912]
[1737992825186,0.03138485,234.78,234.73,4.29130912]
[1737992825608,0.03138485,234.78,234.77,4.2592]
[1737992825796,0.03138485,234.78,234.73,0.03140912]
[1737992831190,21.4167197,234.96,234.73,0.03140912]
[1737992831391,4.8128,235.0,234.77,21.4167197]
[1737992831897,21.4167197,234.96,234.73,3.1931]
[1737992832099,4.257,234.9,234.79,4.2589]
[1737992832297,21.4167197,234.96,234.73,3.1931]
[1737992832597,0.03204396,234.87,234.86,4.2576]
[1737992832998,4.8128,235.0,234.84,0.03094933]
[1737992833193,4.8128,235.0,234.77,21.4167197]
[1737992833399,0.03058506,234.91,234.86,0.028073]
[1737992834199,4.2574,234.87,234.86,0.028073]
[1737992835203,4.2574,234.87,234.86,7.3e-05]
[1737992838001,4.2584,234.82,234.77,4.2592]
[1737992838702,4.2584,234.82,234.73,3.1931]
[1737992838904,4.2584,234.82,234.76,4.2594]
[1737992839094,0.0275492,234.8,234.76,4.2594]
[1737992839295,0.0275492,234.8,234.75,0.03223121]
[1737992840102,21.4167197,234.99,234.75,21.44895091]
[1737992840302,21.4167197,234.99,234.75,21.4167197]
[1737992840901,21.4167197,234.94,234.73,3.1931]
[1737992841200,21.4167197,234.88,234.66,1.5505]
[1737992841395,0.03213859,234.86,234.81,0.02988727]
[1737992841600,4.2592,234.78,234.73,4.2599]
[1737992841801,4.5557,234.87,234.67,3.3895]
[1737992842105,4.2593,234.77,234.73,0.03168176]
[1737992842402,0.03201619,234.78,234.73,0.03168176]
[1737992842998,0.03201619,234.78,234.73,8.176e-05]
[1737992843306,4.2598,234.74,234.73,8.176e-05]
[1737992845299,4.2594,234.76,234.73,8.176e-05]
[1737992846108,4.2598,234.74,234.73,8.176e-05]
[1737992846806,4.2595,234.76,234.73,8.176e-05]
[1737992847207,0.03201619,234.78,234.73,8.176e-05]
[1737992847404,4.2598,234.74,234.73,8.176e-05]
[1737992848006,0.03201619,234.78,234.58,1.4975]
[1737992848209,3.1702,234.73,234.58,1.4975]
[1737992848410,3.1702,234.73,234.58,5.7602]
[1737992848411,1.5141,234.72,234.58,5.7602]
[1737992848600,4.2614,234.66,234.57,3.2342]
[1737992848806,1.5141,234.72,234.57,3.2342]
[1737992849109,4.2607,234.69,234.57,3.2342]
[1737992849428,0.02744374,234.67,234.62,0.02883845]
[1737992850309,41.06829505,234.85,234.62,0.02883845]
[1737992850509,27.89942736,234.85,234.61,13.16886769]
[1737992851005,27.89942736,234.85,234.66,13.16886769]
[1737992851408,0.03111299,234.78,234.73,0.03019248]
[1737992851909,23.28662736,234.85,234.73,0.03019248]
[1737992852109,5.82165684,234.93,234.76,13.16886769]
[1737992852306,4.2568,234.91,234.81,4.2585]
[1737992852527,5.82165684,234.93,234.82,13.16886769]
[1737992852705,5.82165684,234.93,234.87,13.16886769]
[1737992853010,5.82165684,234.93,234.79,3.48]
[1737992853216,0.02851248,234.92,234.88,0.02996677]
[1737992853414,4.28511248,234.92,234.88,0.02996677]
[1737992853615,0.02851248,234.92,234.88,0.02996677]
[1737992853914,4.257,234.9,234.88,0.02996677]
[1737992854119,1.4682,234.91,234.74,13.16886769]
[1737992854616,1.4682,234.91,234.72,24.78718382]
[1737992854816,1.4682,234.91,234.72,3.3976]
[1737992855018,21.38958382,234.9,234.72,3.3976]
[1737992855315,0.02988686,234.84,234.79,0.02815341]
[1737992855919,0.02988686,234.84,234.79,4.28695341]
[1737992856117,0.02988686,234.84,234.79,0.02815341]
[1737992856511,4.2586,234.81,234.79,0.02815341]
[1737992857220,4.2583,234.83,234.79,0.02815341]
[1737992857520,0.02988686,234.84,234.79,0.02815341]
[1737992858421,4.259,234.79,234.65,1.5046]
[1737992858615,0.02988686,234.84,234.65,1.5046]
[1737992858809,21.38958382,234.85,234.66,4.2611]
[1737992859112,21.38958382,234.9,234.64,24.86958382]
[1737992859418,21.38958382,234.85,234.64,3.48]
[1737992859620,0.03060074,234.79,234.75,0.03162611]
[1737992860319,4.28960074,234.79,234.75,0.03162611]
[1737992860518,0.03060074,234.79,234.75,0.03162611]
[1737992861214,0.03060074,234.79,234.64,24.86958382]
[1737992861422,24.86958382,234.9,234.64,24.86958382]
[1737992861721,21.38958382,234.85,234.64,24.86958382]
[1737992861919,4.2586,234.81,234.72,4.2601]
[1737992862216,0.03096773,234.79,234.64,24.86958382]
[1737992862517,1.4682,234.91,234.65,0.75797164]
[1737992862518,21.38958382,234.9,234.65,0.75797164]
[1737992862824,0.0297272,234.74,234.69,21.38958382]
[1737992863119,1.4682,234.91,234.7,1.4238]
[1737992863319,1.4682,234.91,234.76,21.38958382]
[1737992863519,3.2494,234.92,234.8,4.2585]
[1737992863719,3.2494,234.92,234.76,21.38958382]
[1737992864114,0.03272718,234.86,234.84,4.2579]
[1737992864518,4.2557,234.97,234.89,4.2569]
[1737992864822,5.82165684,235.01,234.83,3.2147]
[1737992865519,3.64329,234.91,234.77,21.38958382]
[1737992865728,3.64329,234.91,234.9,0.03142255]
[1737992865941,3.64329,234.91,234.77,21.38958382]
[1737992866222,3.64329,234.91,234.88,0.02911845]
[1737992866417,3.64329,234.91,234.89,4.257]
[1737992866623,3.64329,234.91,234.87,0.03011974]
[1737992867024,3.64329,234.91,234.87,4.28741974]
[1737992867223,3.64329,234.91,234.87,0.03011974]
[1737992867616,3.64329,234.91,234.89,4.257]
[1737992868320,3.64329,234.91,234.87,0.03011974]
[1737992868624,3.64329,234.91,234.87,4.28741974]
[1737992868925,3.64329,234.91,234.87,0.03011974]
[1737992871723,3.64329,234.91,234.9,4.2569]
[1737992871923,3.64329,234.91,234.87,0.03011974]
[1737992872618,3.64329,234.91,234.73,21.38958382]
[1737992872820,4.2577,234.86,234.8,4.2585]
[1737992873136,5.08769,234.91,234.73,21.38958382]
[1737992873322,4.2579,234.85,234.78,4.259]
[1737992873529,5.08769,234.91,234.71,3.338]
[1737992873727,1.5005,234.9,234.71,3.338]
[1737992873928,4.2587,234.8,234.79,0.03126491]
[1737992874124,0.02882591,234.83,234.79,0.03126491]
[1737992876427,0.02882591,234.83,234.8,4.2586]
[1737992876628,0.02882591,234.83,234.79,0.03126491]
[1737992877030,0.02882591,234.83,234.82,4.2583]
[1737992877428,2.591e-05,234.83,234.82,4.2583]
[1737992878332,3.64329,234.91,234.89,4.257]
[1737992878630,3.64329,234.91,234.85,13.16359862]
[1737992878826,3.64329,234.91,234.86,3.2037]
[1737992879231,3.64329,234.91,234.8,14.68979862]
[1737992879426,3.64329,234.91,234.81,3.2037]
[1737992879634,0.02711065,234.88,234.87,4.2574]
[1737992880129,0.02711065,234.88,234.83,0.03123674]
[1737992880130,0.02711065,234.88,234.86,4.2576]
[1737992880328,0.02711065,234.88,234.83,0.03123674]
[1737992880524,3.64329,234.91,234.83,0.03123674]
[1737992880729,3.64329,234.91,234.9,4.2569]
[1737992880929,3.64329,234.91,234.83,0.03123674]
[1737992881135,3.64329,234.91,234.81,3.2037]
[1737992881326,7.90009,234.91,234.84,4.258]
[1737992881627,3.64329,234.91,234.81,3.2037]
[1737992881833,0.02808685,234.9,234.89,4.257]
[1737992882031,13.16359862,235.13,234.85,13.1919722]
[1737992882229,2.9649,235.12,234.91,13.16359862]
[1737992882625,13.16359862,235.08,234.81,3.2037]
[1737992882929,4.2558,234.96,234.85,4.2577]
[1737992883128,13.16359862,235.02,234.88,0.03260992]
[1737992883327,0.03176422,234.93,234.88,0.03260992]
[1737992885536,0.03176422,234.93,234.73,13.16359862]
[1737992885748,13.16359862,234.97,234.74,2.29194547]
[1737992885935,4.2576,234.87,234.81,4.2583]
[1737992886131,13.16359862,234.97,234.74,1.5343]
[1737992886329,1.5375,235.0,234.78,13.16359862]
[1737992886637,0.02768366,234.88,234.83,0.02857125]
[1737992886837,13.16359862,234.96,234.74,1.5343]
[1737992887037,0.02859688,234.88,234.83,0.03053693]
[1737992888639,4.2574,234.87,234.83,0.03053693]
[1737992888828,0.02859688,234.88,234.83,0.03053693]
[1737992889432,4.258,234.84,234.83,0.03053693]
[1737992889831,0.02859688,234.88,234.73,1.7932]
[1737992890030,1.7645,234.87,234.66,1.5336]
[1737992890237,13.16359862,234.86,234.67,0.7578573]
[1737992890531,13.16359862,234.86,234.67,4.261]
[1737992890939,13.16359862,234.86,234.66,1.5336]
[1737992891141,4.2597,234.75,234.74,0.02955833]
[1737992891440,0.02804617,234.79,234.68,4.2608]
[1737992891636,13.16359862,234.86,234.6,13.16359862]
[1737992891935,13.16359862,234.81,234.57,13.16359862]
[1737992892134,13.16359862,234.71,234.47,13.16359862]
[1737992892334,4.2624,234.6,234.5,4.264]
[1737992892642,1.7957,234.7,234.57,0.03062566]
[1737992892643,0.02761373,234.61,234.57,0.03062566]
[1737992892838,4.2611,234.67,234.55,4.2631]
[1737992893043,0.02847913,234.61,234.57,0.02695097]
[1737992893244,13.16359862,234.81,234.57,13.19054959]
[1737992893439,4.2597,234.75,234.62,4.2619]
[1737992893640,13.16359862,234.81,234.58,4.7667]
[1737992893842,13.16359862,234.81,234.59,0.75813828]
[1737992894040,13.16359862,234.81,234.58,4.7667]
[1737992894236,0.02762818,234.72,234.67,0.03252474]
[1737992895035,0.02762818,234.72,234.4,19.62408996]
[1737992895237,4.2614,234.65,234.48,13.16359862]
[1737992895434,1.8083,234.72,234.51,4.2639]
[1737992895845,1.8083,234.72,234.48,13.16359862]
[1737992896343,1.8083,234.72,234.58,0.02836655]
[1737992896344,0.02774315,234.62,234.58,0.02836655]
[1737992896540,1.5214,234.71,234.58,0.02836655]
[1737992896740,0.03026693,234.62,234.58,0.02836655]
[1737992896943,1.5214,234.71,234.58,0.02836655]
[1737992897144,0.0326566,234.62,234.58,0.02836655]
[1737992897340,4.2612,234.66,234.58,4.29096655]
[1737992897642,0.02765546,234.62,234.58,0.02836655]
[1737992898046,1.5214,234.71,234.59,4.2625]
[1737992898245,0.02947965,234.62,234.58,0.02836655]
[1737992898544,0.02951399,234.62,234.58,0.02836655]
[1737992899250,0.02951399,234.62,234.6,4.2622]
[1737992899839,0.02951399,234.62,234.59,1.8394]
[1737992900748,0.02951399,234.62,234.58,0.02836655]
[1737992901450,4.2625,234.59,234.58,0.02836655]
[1737992901839,0.02951399,234.62,234.58,0.02836655]
[1737992902149,4.2625,234.59,234.58,0.02836655]
[1737992902744,4.2629,234.57,234.5,4.2641]
[1737992903046,1.5128,234.64,234.45,1.4895]
[1737992903445,13.16359862,234.62,234.45,1.4895]
[1737992903842,0.02741054,234.56,234.5,4.264]
[1737992904047,0.02741054,234.56,234.45,1.4895]
[1737992904441,0.02741054,234.56,234.48,4.2644]
[1737992904650,0.02741054,234.56,234.45,1.4895]
[1737992906451,4.2644,234.49,234.42,61.07632166]
[1737992906647,4.2644,234.49,234.4,13.16359862]
[1737992906648,13.16359862,234.58,234.35,13.16359862]
[1737992906847,0.03194528,234.48,234.36,0.75890921]
[1737992907051,0.03194528,234.48,234.41,4.2657]
[1737992907550,4.2649,234.46,234.41,4.2657]
[1737992907747,0.03194528,234.48,234.41,4.2657]
[1737992908249,13.16359862,234.43,234.21,13.16359862]
[1737992908449,1.3898,234.42,234.24,1.7037]
[1737992908846,0.03136499,234.35,234.24,1.7037]
[1737992909450,0.03136499,234.35,234.28,4.2681]
[1737992910145,0.03136499,234.35,234.26,4.2684]
[1737992910347,0.03136499,234.35,234.24,1.7037]
[1737992910547,0.03136499,234.35,234.25,0.7592151]
[1737992910750,0.03136499,234.35,234.27,4.2682]
[1737992910974,0.03136499,234.35,234.24,1.7037]
[1737992911948,4.29826499,234.35,234.26,4.2684]
[1737992912247,0.03136499,234.35,234.24,1.7037]
[1737992912750,4.29836499,234.35,234.26,4.2685]
[1737992912950,0.03136499,234.35,234.26,4.2685]
[1737992913251,4.2673,234.33,234.24,5.9724]
[1737992913749,0.03136499,234.35,234.24,1.7037]
[1737992914944,4.2671,234.34,234.28,4.268]
[1737992915154,0.03136499,234.35,234.24,1.7037]
[1737992915951,4.2674,234.32,234.27,4.2683]
[1737992916150,0.03136499,234.35,234.27,4.2683]
[1737992916453,0.03136499,234.35,234.24,1.7037]
[1737992917655,0.03136499,234.35,234.25,4.2687]
[1737992917854,0.03136499,234.35,234.24,1.7037]
[1737992919454,4.2677,234.31,234.24,5.9725]
[1737992919655,13.16359862,234.39,234.24,1.7037]
[1737992919860,0.02763037,234.3,234.24,1.7037]
[1737992920458,4.268,234.29,234.25,4.2687]
[1737992920757,0.02763037,234.3,234.24,1.7037]
[1737992921156,4.29543037,234.3,234.26,4.2685]
[1737992921747,4.268,234.29,234.24,1.7037]
[1737992921958,0.02763037,234.3,234.24,1.7037]
[1737992922154,0.02763037,234.3,234.14,13.16359862]
[1737992922359,0.02763037,234.3,234.21,4.2692]
[1737992922360,4.2687,234.25,234.21,4.2692]
[1737992922661,0.02763037,234.3,234.17,1.7991]
[1737992922857,4.2683,234.28,234.23,4.269]
[1737992923056,0.02763037,234.3,234.17,1.7991]
[1737992923257,0.02763037,234.3,234.2,1.4264]
[1737992923654,0.02763037,234.3,234.27,4.2683]
[1737992923957,0.02763037,234.3,234.2,1.4264]
[1737992925252,0.02763037,234.3,234.29,4.268]
[1737992925857,0.02763037,234.3,234.2,1.4264]
[1737992926355,0.02763037,234.3,234.28,4.2681]
[1737992926681,0.02763037,234.3,234.23,13.16359862]
[1737992927053,0.02763037,234.3,234.29,4.268]
[1737992927560,3.158,234.42,234.33,4.2671]
[1737992928151,1.3898,234.42,234.35,4.2667]
[1737992928351,1.3898,234.42,234.28,1.8418]
[1737992928556,4.2663,234.39,234.28,1.8418]
[1737992928765,0.03241171,234.37,234.33,0.02812523]
[1737992929159,0.03241171,234.37,234.31,4.2674]
[1737992929556,0.03241171,234.37,234.34,4.267]
[1737992929756,0.03241171,234.37,234.28,1.8418]
[1737992931669,0.03241171,234.37,234.23,13.16359862]
[1737992932563,4.2674,234.32,234.27,4.2681]
[1737992932859,1.3898,234.42,234.23,13.16359862]
[1737992933065,4.2679,234.3,234.25,4.2685]
[1737992933265,0.031769,234.32,234.23,13.16359862]
[1737992934266,0.031769,234.32,234.29,4.2678]
[1737992934666,0.031769,234.32,234.23,13.16359862]
[1737992934979,4.299169,234.32,234.28,4.2681]
[1737992935265,0.031769,234.32,234.28,4.2681]
[1737992935468,0.031769,234.32,234.23,13.16359862]
[1737992936563,4.2678,234.3,234.26,4.2683]
[1737992936767,4.2678,234.3,234.23,13.16359862]
[1737992936965,0.031769,234.32,234.23,13.16359862]
[1737992937165,4.2684,234.27,234.17,13.16359862]
[1737992937370,14.55339862,234.42,234.17,13.16359862]
[1737992937570,0.02852068,234.24,234.17,13.16359862]
[1737992937864,0.03116779,234.23,234.17,13.16359862]
[1737992938069,14.55339862,234.42,234.17,13.16359862]
[1737992938270,4.2669,234.35,234.22,4.2692]
[1737992938467,0.03037185,234.32,234.22,4.2692]
[1737992938662,0.03037185,234.32,234.17,13.16359862]
[1737992938870,1.3898,234.42,234.21,13.16359862]
[1737992939091,0.02798034,234.27,234.22,1.4139]
[1737992939273,4.2674,234.32,234.27,4.2682]
[1737992939570,0.03236569,234.27,234.23,1.7221]
[1737992939776,1.3898,234.42,234.23,1.7221]
[1737992939976,0.02757883,234.27,234.21,13.16359862]
[1737992940177,1.3898,234.42,234.21,13.16359862]
[1737992940372,0.03132729,234.26,234.25,4.2687]
[1737992940678,1.3898,234.42,234.21,13.16359862]
[1737992941076,4.2671,234.34,234.21,13.16359862]
[1737992941480,7.28435684,234.47,234.26,13.16359862]
[1737992941779,7.28435684,234.47,234.31,13.16359862]
[1737992941970,0.02871604,234.39,234.31,13.16359862]
[1737992942174,0.02871604,234.39,234.37,0.02902282]
[1737992942374,0.02871604,234.39,234.37,2.282e-05]
[1737992942673,4.2663,234.38,234.37,2.282e-05]
[1737992942875,5.7249,234.38,234.37,2.282e-05]
[1737992945292,1.4586,234.38,234.17,8.26358079]
[1737992945472,8.26358079,234.34,234.17,8.26358079]
[1737992945873,3.2438,234.37,234.17,8.26358079]
[1737992946079,3.2438,234.37,234.21,8.26358079]
[1737992946287,4.2679,234.3,234.23,4.2689]
[1737992946575,0.02814932,234.27,234.23,4.2689]
[1737992946780,3.2438,234.37,234.21,8.26358079]
[1737992947076,0.02887912,234.27,234.17,8.26358079]
[1737992947476,0.02887912,234.27,234.13,8.26358079]
[1737992947678,8.26358079,234.34,234.13,8.26358079]
[1737992947878,0.02768844,234.22,234.15,4.2704]
[1737992948073,4.269,234.24,234.13,8.26358079]
[1737992948283,0.03020025,234.21,234.13,8.26358079]
[1737992948482,4.2693,234.22,234.16,4.2703]
[1737992948678,0.03067875,234.19,234.13,8.26358079]
[1737992948981,0.02944784,234.18,234.14,4.2706]
[1737992949180,8.26358079,234.3,234.09,8.26358079]
[1737992949380,0.03090556,234.18,234.09,8.26358079]
[1737992949979,0.03090556,234.18,234.04,8.26358079]
[1737992950179,8.26358079,234.34,234.16,8.26358079]
[1737992950485,8.26358079,234.34,234.17,1.5055]
[1737992950881,8.26358079,234.34,234.22,4.2692]
[1737992951182,8.26358079,234.34,234.17,1.5055]
[1737992951385,0.03173944,234.3,234.26,0.02838099]
[1737992951578,0.03173944,234.3,234.12,9.78768079]
[1737992951579,8.29532023,234.3,234.12,9.78768079]
[1737992951885,8.26358079,234.3,234.12,9.78768079]
[1737992952282,4.2682,234.28,234.17,4.2701]
[1737992952482,8.26358079,234.3,234.12,9.78768079]
[1737992952781,0.02774452,234.23,234.12,9.78768079]
[1737992953379,4.2694,234.21,234.15,4.2705]
[1737992953693,0.02774452,234.23,234.08,8.26358079]
[1737992953884,8.26358079,234.3,234.12,8.26358079]
[1737992954184,0.02878353,234.18,234.12,8.26358079]
[1737992954379,8.26358079,234.3,234.12,8.26358079]
[1737992954586,4.2687,234.25,234.16,4.2703]
[1737992954786,0.03215126,234.23,234.12,8.26358079]
[1737992955382,0.03215126,234.23,234.13,1.697]
[1737992956184,0.03215126,234.23,234.22,4.2692]
[1737992957687,1.449,234.36,234.2,8.26358079]
[1737992957888,1.449,234.36,234.24,8.26358079]
[1737992958090,8.26358079,234.46,234.28,8.26358079]
[1737992958393,5.85842557,234.47,234.32,8.26358079]
[1737992958588,5.85842557,234.47,234.29,1.5004]
[1737992958782,4.2664,234.38,234.29,1.5004]
[1737992958982,0.02741821,234.4,234.36,0.02932698]
[1737992959289,0.02741821,234.4,234.32,4.2674]
[1737992959491,0.02741821,234.4,234.36,0.03016646]
[1737992960393,0.02741821,234.4,234.24,8.26358079]
[1737992960394,4.2674,234.33,234.22,4.2691]
[1737992960586,9.97048079,234.39,234.22,4.2691]
[1737992960783,8.26358079,234.35,234.08,3.48]
[1737992960987,8.26358079,234.35,234.18,4.2699]
[1737992961189,8.26358079,234.35,234.11,2.853]
[1737992961490,8.26358079,234.35,234.17,0.75957196]
[1737992961689,0.03153377,234.28,234.2,8.26358079]
[1737992962191,4.2684,234.27,234.2,8.26358079]
[1737992962395,0.03153377,234.28,234.11,2.853]
[1737992962590,0.03153377,234.28,234.12,13.22911869]
[1737992962791,0.03153377,234.28,234.13,0.75964788]
[1737992962986,13.22911869,234.35,234.1,13.22911869]
[1737992963191,0.02825634,234.23,234.11,0.75974969]
[1737992963491,0.02825634,234.23,234.1,13.22911869]
[1737992963789,0.02825634,234.23,234.11,0.75974702]
[1737992964193,4.2694,234.21,234.14,4.2706]
[1737992964390,0.02825634,234.23,234.1,13.22911869]
[1737992964590,13.22911869,234.35,234.1,13.22911869]
[1737992964788,0.02749435,234.19,234.11,0.75975141]
[1737992964985,13.22911869,234.35,234.1,13.22911869]
[1737992965194,4.2713,234.11,234.05,1.7916]
[1737992965389,13.22911869,234.26,234.05,1.7916]
[1737992965595,0.02716482,234.1,234.05,1.7916]
[1737992965992,13.22911869,234.22,234.0,56.91456777]
[1737992966193,0.02695992,234.1,233.98,13.22911869]
[1737992966493,0.02695992,234.1,233.98,17.50271869]
[1737992967189,0.02695992,234.1,233.94,13.22911869]
[1737992967397,4.5947,234.13,233.91,173.48584499]
[1737992967694,0.02706213,234.04,233.92,0.76027912]
[1737992968289,4.2733,234.0,233.91,173.48584499]
[1737992968487,0.02706213,234.04,233.91,173.48584499]
[1737992968687,13.22911869,234.1,233.91,173.48584499]
[1737992968893,0.02954506,234.0,233.89,1.7149]
[1737992969213,0.02954506,234.0,233.9,0.76042021]
[1737992969897,0.02954506,234.0,233.89,1.7149]
[1737992970596,4.30294506,234.0,233.89,1.7149]
[1737992970895,0.02954506,234.0,233.86,1.3882]
[1737992971298,0.02954506,234.0,233.84,173.48584499]
[1737992971299,13.22911869,233.98,233.84,173.48584499]
[1737992971496,4.6215,233.97,233.77,13.22911869]
[1737992971795,0.03102204,233.93,233.85,4.2758]
[1737992971992,0.03102204,233.93,233.81,13.22911869]
[1737992972191,4.6215,233.97,233.82,0.76070329]
[1737992972393,0.02751058,233.89,233.86,4.2758]
[1737992972700,4.274,233.96,233.86,4.2758]
[1737992972994,0.03256624,233.9,233.77,13.22911869]
[1737992973191,0.03256624,233.9,233.72,13.22911869]
[1737992973391,17.85061869,233.97,233.73,0.76097372]
[1737992973591,0.03089937,233.83,233.73,0.76097372]
[1737992974193,0.03089937,233.83,233.77,4.2773]
[1737992974694,0.03089937,233.83,233.72,13.22911869]
[1737992974998,0.03089937,233.83,233.73,0.76095025]
[1737992975889,0.03089937,233.83,233.72,13.22911869]
[1737992976296,4.30729937,233.83,233.72,13.22911869]
[1737992976895,0.03089937,233.83,233.82,4.2765]
[1737992977199,0.03089937,233.83,233.76,13.22911869]
[1737992977395,0.03089937,233.83,233.76,4.2775]
[1737992977693,0.03047377,233.82,233.72,13.22911869]
[1737992978790,0.03047377,233.82,233.79,4.277]
[1737992979992,0.03047377,233.82,233.81,4.2767]
[1737992980796,4.6215,233.97,233.76,13.22911869]
[1737992980998,4.6215,233.97,233.8,13.22911869]
[1737992981400,4.2741,233.96,233.88,4.2754]
[1737992981698,16.70911869,234.1,233.85,13.22911869]
[1737992981896,1.4036,234.03,233.86,1.4922]
[1737992982201,0.02808369,234.0,233.95,0.02830728]
[1737992982597,0.02808369,234.0,233.98,4.2736]
[1737992982996,1.4036,234.13,233.95,0.02830728]
[1737992983202,4.2719,234.08,233.93,11.35236627]
[1737992984102,4.2716,234.1,234.0,4.2732]
[1737992984303,0.02920268,234.03,234.0,4.2732]
[1737992984698,2.9125,234.13,234.0,4.2732]
[1737992984903,0.03177433,234.04,234.0,4.2732]
[1737992985106,2.9125,234.13,233.98,4.2736]
[1737992985303,13.22911869,234.1,234.04,3.401e-05]
[1737992985501,0.03029988,234.08,234.04,3.401e-05]
[1737992985819,4.273,234.02,233.89,13.22911869]
[1737992986004,0.03029988,234.08,233.93,4.2745]
[1737992986201,13.22911869,234.1,233.93,4.2745]
[1737992986500,0.03126598,234.04,233.87,1.498]
[1737992986702,13.22911869,234.06,233.91,4.2749]
[1737992986999,0.03288067,233.98,233.91,4.2749]
[1737992987207,4.30648067,233.98,233.89,4.2751]
[1737992987402,4.30648067,233.98,233.87,1.498]
[1737992987602,0.03288067,233.98,233.87,1.498]
[1737992987909,0.03288067,233.98,233.92,4.2747]
[1737992988801,0.03288067,233.98,233.87,3.2003]
[1737992989101,2.9125,234.13,233.95,13.22911869]
[1737992989307,2.9125,234.13,233.96,1.4266]
[1737992989905,4.2716,234.09,234.02,4.2727]
[1737992990102,0.02986558,234.07,234.02,0.03190189]
[1737992991107,1.4088,234.19,234.02,0.03190189]
[1737992991407,1.4088,234.19,234.03,13.22911869]
[1737992991608,4.2703,234.16,234.03,13.22911869]
[1737992992203,4.2705,234.15,234.09,4.2714]
[1737992992410,0.03260135,234.12,234.07,0.0302835]